bitfinex-derivatives/quotes_SOLF0:USTF0_20250613
["timestamp","ask_amount","ask_price","bid_price","bid_amount"]
[1749783366042,5.61467626,142.15,142.12,0.05390789]
[1749783366242,5.61467626,142.14,142.12,0.05390789]
[1749783366444,477.72069765,142.17,142.12,0.05390789]
[1749783366650,8.02213495,142.15,142.12,0.05390789]
[1749783366950,5.61476761,142.14,142.12,0.05390789]
[1749783367249,471.28213495,142.17,142.12,0.05390789]
[1749783367550,8.02213495,142.13,142.12,0.05390789]
[1749783367758,192.56958653,142.13,142.12,0.05390789]
[1749783368645,195.19047002,142.13,142.12,0.05390789]
[1749783368849,195.19047007,142.13,142.12,0.05390789]
[1749783369051,185.53858653,142.13,142.12,0.05390789]
[1749783369246,177.51645158,142.13,142.12,0.05390789]
[1749783369556,186.85283495,142.14,142.12,0.05390789]
[1749783370249,179.82213495,142.14,142.12,0.05390789]
[1749783371151,186.85293495,142.14,142.12,0.05390789]
[1749783371652,463.26,142.17,142.12,0.05390789]
[1749783371853,177.33610352,142.16,142.12,0.05390789]
[1749783372043,171.7,142.16,142.12,0.05390789]
[1749783372856,179.72213495,142.16,142.12,0.05390789]
[1749783373152,171.7,142.16,142.12,0.05390789]
[1749783373347,171.7,142.16,142.13,7.0309]
[1749783373758,470.2892,142.17,142.12,0.05390789]
[1749783373759,463.26,142.17,142.12,0.05390789]
[1749783373943,171.6,142.16,142.12,0.05390789]
[1749783374143,57.94,142.17,142.12,0.05390789]
[1749783375047,7.0298,142.16,142.13,7.0307]
[1749783375243,65.96213495,142.17,142.12,0.05390789]
[1749783375450,8.02213495,142.15,142.12,0.05390789]
[1749783375646,65.96213495,142.17,142.12,0.05390789]
[1749783375851,57.94,142.17,142.12,0.05390789]
[1749783376052,171.5,142.16,142.12,0.05390789]
[1749783376456,57.94,142.17,142.12,0.05390789]
[1749783376653,229.44,142.17,142.12,0.05390789]
[1749783377258,229.44,142.17,142.12,4.727756]
[1749783377459,57.94,142.17,142.12,4.727756]
[1749783377661,57.94,142.17,142.16,7.0295]
[1749783378051,171.48,142.18,142.16,7.0295]
[1749783378361,171.48,142.18,142.17,7.029]
[1749783378553,4.67384811,142.19,142.15,0.04943053]
[1749783378956,4.67384811,142.19,142.16,7.0292]
[1749783379361,4.67384811,142.19,142.15,0.04943053]
[1749783379555,4.67384811,142.19,142.17,7.0289]
[1749783379954,4.67384811,142.19,142.18,7.0285]
[1749783380157,57.94,142.21,142.15,0.04943053]
[1749783380462,229.24,142.21,142.15,0.04943053]
[1749783380666,57.94,142.21,142.15,0.04943053]
[1749783380963,236.2471,142.21,142.18,7.0283]
[1749783381159,229.22,142.21,142.18,0.05108371]
[1749783381365,57.94,142.21,142.18,0.05108371]
[1749783381564,171.26,142.23,142.2,7.0275]
[1749783381765,414.4899,142.24,142.2,7.0275]
[1749783382063,171.22,142.23,142.2,7.0275]
[1749783382559,414.4899,142.24,142.2,7.0275]
[1749783382759,4.67384811,142.21,142.18,0.05108371]
[1749783382964,4.67384811,142.19,142.11,4.67384811]
[1749783383159,7.0297,142.16,142.12,7.031]
[1749783383558,7.0297,142.16,142.1,4.6677]
[1749783384161,7.0297,142.16,142.12,0.0513508]
[1749783384162,0.04469343,142.14,142.12,0.0513508]
[1749783384357,0.04469343,142.14,142.12,7.0827508]
[1749783384562,0.04469343,142.14,142.12,0.0513508]
[1749783385962,7.07559343,142.14,142.12,0.0513508]
[1749783386763,7.031,142.13,142.12,0.0513508]
[1749783388565,8.0607843,142.14,142.06,2.2725]
[1749783388566,7.0327,142.1,142.06,2.2725]
[1749783388865,7.0327,142.1,142.04,57.92]
[1749783389566,0.04861403,142.08,142.06,0.05301091]
[1749783390364,7.08211403,142.08,142.06,0.05301091]
[1749783391171,0.04861403,142.08,142.06,0.05301091]
[1749783392669,0.04861403,142.08,142.07,7.034]
[1749783393965,0.04861403,142.08,142.06,0.05301091]
[1749783395977,0.04861403,142.08,142.06,7.08731091]
[1749783396169,0.04861403,142.08,142.06,0.05301091]
[1749783396671,0.04861403,142.08,142.07,7.034]
[1749783396865,57.08,142.14,142.07,8.01609087]
[1749783397164,57.08,142.18,142.12,8.01609087]
[1749783397566,415.58739087,142.22,142.13,2.4194]
[1749783397771,176.25875334,142.21,142.13,4.8029]
[1749783397970,0.04612607,142.19,142.16,0.05046502]
[1749783399168,0.04612607,142.19,142.16,8.06655589]
[1749783399569,0.04612607,142.19,142.18,7.0285]
[1749783400173,65.30871604,142.26,142.22,7.0262]
[1749783400381,57.06,142.26,142.18,8.01609087]
[1749783400681,7.0251,142.25,142.22,7.0265]
[1749783400876,57.06,142.26,142.18,8.01609087]
[1749783401071,57.06,142.26,142.2,8.01609087]
[1749783401276,57.06,142.3,142.22,8.0662992]
[1749783401483,57.06,142.3,142.25,0.04878071]
[1749783401679,57.06,142.3,142.26,0.04836651]
[1749783401883,57.06,142.3,142.27,7.0241]
[1749783402379,57.06,142.3,142.28,7.0235]
[1749783402974,57.06,142.3,142.27,7.0239]
[1749783403184,227.34,142.34,142.28,8.01609087]
[1749783403485,7.0215,142.33,142.3,0.0478455]
[1749783403674,227.32,142.34,142.3,0.0478455]
[1749783404082,7.0221,142.32,142.3,0.0478455]
[1749783404381,227.32,142.34,142.3,0.0478455]
[1749783404883,7.0219,142.32,142.3,0.0478455]
[1749783405085,227.32,142.34,142.3,0.0478455]
[1749783405485,227.32,142.34,142.3,7.0701455]
[1749783405785,57.04,142.34,142.3,7.0701455]
[1749783406188,57.04,142.34,142.3,0.0478455]
[1749783406582,64.0608,142.34,142.3,7.0701455]
[1749783406785,57.04,142.34,142.3,0.0478455]
[1749783407986,57.04,142.34,142.32,7.0213]
[1749783408188,462.16,142.38,142.3,0.0478455]
[1749783408489,170.04,142.37,142.33,7.06807735]
[1749783408690,178.05609087,142.37,142.33,0.04707735]
[1749783410386,185.07539087,142.37,142.33,7.06817735]
[1749783410783,177.0593,142.37,142.33,7.06817735]
[1749783411183,462.16,142.38,142.33,0.04707735]
[1749783411384,226.9,142.38,142.33,8.06316822]
[1749783411591,226.9,142.38,142.35,7.0197]
[1749783411892,226.86,142.38,142.33,8.06316822]
[1749783412389,226.86,142.38,142.35,7.0198]
[1749783412390,226.84,142.38,142.35,7.0198]
[1749783412785,226.82,142.38,142.35,7.0198]
[1749783413091,169.78,142.37,142.36,7.0196]
[1749783416189,57.02,142.38,142.36,7.0196]
[1749783416380,226.64,142.38,142.36,7.0196]
[1749783417294,226.64,142.38,142.37,7.0192]
[1749783417589,226.64,142.38,142.35,0.05286914]
[1749783417790,57.02,142.38,142.35,0.05286914]
[1749783418090,226.56,142.38,142.35,0.05286914]
[1749783419090,226.56,142.38,142.37,7.0192]
[1749783419288,57.02,142.38,142.37,7.0192]
[1749783419592,226.46,142.42,142.35,8.06896001]
[1749783419891,56.98,142.42,142.35,8.06896001]
[1749783420283,56.98,142.42,142.41,7.0172]
[1749783420887,404.8,142.45,142.44,7.0157]
[1749783421088,58.4686,142.46,142.43,0.04697407]
[1749783421288,227.8686,142.46,142.43,0.05125652]
[1749783421487,58.4686,142.46,142.43,0.05125652]
[1749783421695,169.36,142.45,142.43,0.05125652]
[1749783422093,56.16,142.46,142.43,0.05125652]
[1749783422286,225.52,142.46,142.43,0.05125652]
[1749783422595,225.52,142.46,142.45,7.0152]
[1749783422892,225.5,142.46,142.45,7.0152]
[1749783423094,56.16,142.46,142.45,7.0152]
[1749783423290,66.53249087,142.5,142.43,0.05125652]
[1749783423594,169.3,142.49,142.43,8.06734739]
[1749783423793,56.16,142.5,142.49,7.0132]
[1749783426492,573.74,142.52,142.51,7.0123]
[1749783426901,573.74,142.52,142.48,0.04914841]
[1749783427095,573.74,142.52,142.51,7.0123]
[1749783427494,64.13609087,142.58,142.54,7.0107]
[1749783427800,169.06,142.56,142.54,7.05751245]
[1749783428000,169.06,142.56,142.54,0.04681245]
[1749783428199,64.13609087,142.58,142.54,0.04681245]
[1749783428501,2.73944266,142.57,142.54,0.04681245]
[1749783428696,56.12,142.58,142.56,7.0098]
[1749783428898,171.7596896,142.57,142.56,7.0098]
[1749783429200,171.7597191,142.57,142.56,7.0098]
[1749783429397,176.66182144,142.57,142.56,7.0098]
[1749783429596,7.64090155,142.57,142.54,7.05741245]
[1749783429801,2.73952339,142.56,142.54,7.05741245]
[1749783430100,7.64049907,142.55,142.54,7.05741245]
[1749783430299,7.64047662,142.55,142.54,7.05741245]
[1749783430500,7.6402459,142.55,142.54,0.04681245]
[1749783430797,179.09789126,142.57,142.54,0.04681245]
[1749783430998,11.9104743,142.56,142.54,0.04681245]
[1749783431199,7.63955975,142.55,142.54,0.04681245]
[1749783431399,7.639568,142.55,142.54,0.04681245]
[1749783431601,15.63407048,142.55,142.47,2.3997]
[1749783431797,171.1301,142.57,142.42,4.6548]
[1749783431798,7.96779126,142.51,142.42,4.6548]
[1749783432005,7.96779126,142.49,142.42,4.6548]
[1749783432207,7.6635388,142.48,142.42,4.6548]
[1749783432403,7.66341771,142.47,142.39,2.265]
[1749783432601,0.04770412,142.44,142.43,7.0162]
[1749783432904,2.73791642,142.44,142.42,0.05259856]
[1749783433106,4.93952738,142.43,142.42,0.05259856]
[1749783433405,0.04970342,142.45,142.43,7.0159]
[1749783433604,4.93911966,142.44,142.43,7.0159]
[1749783433804,2.73719024,142.44,142.42,7.06909856]
[1749783434001,4.93821677,142.43,142.42,0.05259856]
[1749783434303,0.04970342,142.45,142.44,7.0157]
[1749783434500,2.78672113,142.45,142.44,7.0157]
[1749783434707,7.72412552,142.45,142.44,7.0157]
[1749783435003,7.72463461,142.45,142.44,7.0157]
[1749783435206,7.72386117,142.45,142.44,7.0157]
[1749783435403,7.72325019,142.45,142.43,7.0161]
[1749783435601,7.67369358,142.44,142.43,7.0161]
[1749783435800,2.73652372,142.44,142.43,7.0161]
[1749783436008,7.6709792,142.44,142.43,7.0161]
[1749783436202,2.73545139,142.44,142.43,7.0161]
[1749783436402,7.67063689,142.44,142.43,7.0161]
[1749783436600,2.73562732,142.44,142.43,7.0161]
[1749783436907,0.04970342,142.45,142.43,7.0161]
[1749783437106,7.67564591,142.44,142.43,7.0161]
[1749783437302,2.7415648,142.44,142.43,7.0161]
[1749783437505,2.7413105,142.44,142.43,7.0161]
[1749783437805,0.04970342,142.45,142.44,7.0157]
[1749783438307,56.12,142.5,142.48,7.0137]
[1749783438507,56.12,142.5,142.44,7.98090092]
[1749783438901,56.12,142.5,142.43,10.38680092]
[1749783439200,56.12,142.5,142.48,7.0135]
[1749783439605,56.12,142.5,142.49,7.0132]
[1749783439806,56.12,142.5,142.48,0.04940579]
[1749783440108,56.12,142.5,142.48,0.05261709]
[1749783440302,14.99410092,142.49,142.48,0.05261709]
[1749783440496,7.98090092,142.49,142.39,10.24590092]
[1749783440701,7.98090092,142.49,142.41,7.98090092]
[1749783440897,7.98090092,142.49,142.39,2.265]
[1749783441105,7.98090092,142.49,142.41,7.98090092]
[1749783441407,0.04523695,142.46,142.44,0.04766039]
[1749783441605,6.4385627,142.52,142.44,0.04766039]
[1749783441803,7.98090092,142.54,142.5,7.0125]
[1749783442002,7.98090092,142.56,142.5,7.0125]
[1749783442202,5.7193129,142.55,142.5,7.0125]
[1749783442398,20.71448273,142.54,142.49,7.0128]
[1749783442599,5.72248181,142.53,142.5,0.05084888]
[1749783443112,63.1122,142.52,142.5,0.05084888]
[1749783443310,56.1,142.52,142.5,0.05084888]
[1749783443511,5.72492829,142.51,142.5,0.05084888]
[1749783444508,5.73356767,142.51,142.5,0.05084888]
[1749783445211,5.73288176,142.51,142.5,0.05084888]
[1749783445605,21.11,142.5,142.33,7.98090092]
[1749783445801,14.39480725,142.47,142.37,7.98090092]
[1749783446104,230.11288176,142.46,142.37,7.98090092]
[1749783446306,5.73288176,142.45,142.37,7.98090092]
[1749783446504,224.38,142.46,142.41,7.0169]
[1749783446505,0.04546984,142.42,142.41,7.0169]
[1749783446802,7.69037136,142.42,142.41,7.0169]
[1749783447004,7.69052295,142.42,142.41,7.0169]
[1749783447311,7.69092243,142.42,142.41,7.0169]
[1749783447516,6.41390633,142.48,142.41,15.00090092]
[1749783447704,404.18,142.51,142.45,7.98090092]
[1749783448004,5.74512425,142.5,142.45,7.98090092]
[1749783448203,5.74512425,142.49,142.45,7.98090092]
[1749783448400,7.0131,142.5,142.46,7.0144]
[1749783448600,5.74602816,142.49,142.47,0.04774987]
[1749783448804,5.74715599,142.48,142.47,0.04774987]
[1749783451107,5.74715599,142.49,142.47,7.06194987]
[1749783451411,411.1924,142.51,142.47,7.06194987]
[1749783451611,5.76256992,142.5,142.47,7.06194987]
[1749783451910,5.76256992,142.49,142.48,7.0137]
[1749783452612,404.18,142.51,142.47,0.04774987]
[1749783452613,5.76409522,142.5,142.47,0.04774987]
[1749783452914,5.76409522,142.49,142.47,0.04774987]
[1749783453115,404.18,142.51,142.48,7.0134]
[1749783453316,5.76388388,142.5,142.48,7.0134]
[1749783453516,404.18,142.51,142.47,0.04774987]
[1749783453714,5.76455398,142.5,142.47,0.04774987]
[1749783454307,5.76455398,142.5,142.49,7.0132]
[1749783454516,5.76455398,142.5,142.47,0.04774987]
[1749783454517,56.1,142.52,142.47,8.02865079]
[1749783454706,56.1,142.52,142.49,7.0129]
[1749783455107,56.1,142.52,142.47,8.02865079]
[1749783455706,56.1,142.52,142.51,7.0123]
[1749783456015,223.22,142.56,142.5,0.05254522]
[1749783456210,7.011,142.54,142.52,0.05020016]
[1749783456410,5.78100037,142.53,142.52,0.05020016]
[1749783456612,223.22,142.56,142.52,0.05020016]
[1749783456816,5.78125715,142.55,142.54,7.0108]
[1749783457205,5.78125715,142.55,142.52,0.05020016]
[1749783457411,5.78125715,142.54,142.52,7.06180016]
[1749783457713,55.32,142.56,142.52,7.06180016]
[1749783457913,5.7837563,142.55,142.52,7.06180016]
[1749783458609,5.7837563,142.54,142.53,7.0113]
[1749783458803,223.14,142.56,142.52,0.05020016]
[1749783459013,5.78877761,142.55,142.52,0.05020016]
[1749783459304,12.79937761,142.55,142.52,7.06170016]
[1749783459506,5.78877761,142.54,142.52,7.06170016]
[1749783459706,223.14,142.56,142.52,0.05020016]
[1749783460015,5.79298721,142.55,142.52,0.05020016]
[1749783460218,5.79298721,142.55,142.53,7.011]
[1749783461019,5.79298721,142.55,142.54,7.0108]
[1749783461315,6.41390633,142.61,142.54,7.98090092]
[1749783461516,55.32,142.62,142.6,7.0075]
[1749783461716,55.32,142.62,142.6,0.05137967]
[1749783462616,55.32,142.62,142.6,7.05907967]
[1749783462817,55.32,142.62,142.6,0.05137967]
[1749783463314,55.32,142.62,142.6,7.05907967]
[1749783463521,55.32,142.62,142.6,0.05137967]
[1749783464215,7.0077,142.61,142.57,7.009]
[1749783464816,55.32,142.62,142.55,2.4086]
[1749783465019,55.32,142.62,142.55,10.38950092]
[1749783465220,0.0472671,142.6,142.57,0.04977622]
[1749783465519,0.0472671,142.6,142.59,7.0083]
[1749783466222,0.0472671,142.6,142.57,0.04977622]
[1749783467322,0.0472671,142.6,142.58,7.0088]
[1749783467517,0.0472671,142.6,142.57,0.04977622]
[1749783468419,7.0551671,142.6,142.57,0.04977622]
[1749783469626,7.0086,142.59,142.57,0.04977622]
[1749783470224,7.0088,142.58,142.57,0.04977622]
[1749783470724,0.0472671,142.6,142.57,0.04977622]
[1749783471118,0.0472671,142.6,142.58,7.0085]
[1749783471927,0.0472671,142.6,142.57,0.04977622]
[1749783472430,7.0552671,142.6,142.57,7.05877622]
[1749783472622,0.0472671,142.6,142.57,0.04977622]
[1749783472824,7.0088,142.58,142.57,0.04977622]
[1749783474223,0.0472671,142.6,142.57,0.04977622]
[1749783475733,0.0472671,142.6,142.58,7.0088]
[1749783476034,7.98090092,142.59,142.57,0.04977622]
[1749783476228,7.0088,142.58,142.57,0.04977622]
[1749783476424,7.98090092,142.59,142.57,0.04977622]
[1749783476624,0.0472671,142.6,142.57,0.04977622]
[1749783477536,7.0086,142.59,142.57,0.04977622]
[1749783477739,0.0472671,142.6,142.57,0.04977622]
[1749783477938,167.1672671,142.6,142.57,0.04977622]
[1749783478337,175.14816802,142.6,142.57,0.04977622]
[1749783478736,7.0086,142.59,142.57,0.04977622]
[1749783479338,182.15616802,142.6,142.57,0.04977622]
[1749783479540,15.03616802,142.6,142.57,0.04977622]
[1749783479842,167.08,142.59,142.57,0.04977622]
[1749783481044,174.0884,142.59,142.57,0.04977622]
[1749783481353,0.0472671,142.6,142.57,8.03067714]
[1749783481735,0.0472671,142.6,142.59,7.0083]
[1749783482940,7.0055,142.65,142.57,8.03067714]
[1749783483143,459.94064575,142.66,142.59,7.98090092]
[1749783483342,626.88064575,142.66,142.59,7.98090092]
[1749783483542,626.88064575,142.66,142.58,4.4015]
[1749783483543,634.86154667,142.66,142.58,4.4015]
[1749783483742,7.98090092,142.64,142.54,7.98090092]
[1749783483948,0.02167519,142.6,142.58,0.05243995]
[1749783484146,0.02167519,142.6,142.58,0.04630903]
[1749783484946,166.90167519,142.6,142.58,0.04630903]
[1749783485348,174.88257611,142.6,142.58,0.04630903]
[1749783485550,7.0083,142.59,142.58,0.04630903]
[1749783485750,174.88257611,142.6,142.58,0.04630903]
[1749783485952,0.02167519,142.6,142.58,0.04630903]
[1749783486253,0.02167519,142.6,142.59,7.0083]
[1749783488048,0.02167519,142.6,142.58,7.05510903]
[1749783488656,0.02167519,142.6,142.58,0.04630903]
[1749783489351,0.02167519,142.6,142.59,7.0083]
[1749783489850,0.02167519,142.6,142.59,14.98920092]
[1749783490053,54.62,142.64,142.63,7.0064]
[1749783490254,54.62,142.64,142.59,12.64580092]
[1749783490655,54.62,142.64,142.62,7.0066]
[1749783491058,54.62,142.64,142.62,7.05391695]
[1749783491258,54.62,142.64,142.62,0.04731695]
[1749783491862,5.72528894,142.63,142.62,0.04731695]
[1749783492156,61.6261,142.64,142.62,0.04731695]
[1749783492560,5.72953232,142.63,142.62,0.04731695]
[1749783492758,61.6261,142.64,142.62,0.04731695]
[1749783495358,7.0064,142.63,142.62,0.04731695]
[1749783495561,12.7450675,142.63,142.62,0.04731695]
[1749783496048,15.4115434,142.63,142.62,0.04731695]
[1749783496250,179.2650675,142.63,142.62,0.04731695]
[1749783496555,172.2586675,142.63,142.62,0.04731695]
[1749783496954,179.2650675,142.63,142.62,0.04731695]
[1749783497153,172.2586675,142.63,142.62,0.04731695]
[1749783497348,54.62,142.64,142.62,7.05421695]
[1749783497553,54.62,142.64,142.62,0.04731695]
[1749783497759,54.62,142.64,142.62,7.05411695]
[1749783498258,412.30584575,142.66,142.62,7.05411695]
[1749783498460,7.004,142.68,142.62,0.04731695]
[1749783498654,5.7513928,142.67,142.62,0.04731695]
[1749783498848,5.7513928,142.66,142.62,0.04731695]
[1749783499050,61.03390633,142.7,142.62,0.04731695]
[1749783499247,172.1899261,142.69,142.65,0.04518182]
[1749783499450,5.7499261,142.68,142.65,0.04518182]
[1749783499657,5.7499261,142.68,142.65,7.05038182]
[1749783499848,172.1699261,142.67,142.65,0.04518182]
[1749783500058,5.74962833,142.66,142.65,0.04518182]
[1749783500757,166.4,142.67,142.65,0.04518182]
[1749783500960,5.74962833,142.66,142.65,0.04518182]
[1749783503363,179.05452833,142.66,142.65,0.04518182]
[1749783503561,172.04962833,142.66,142.65,0.04518182]
[1749783504254,176.82735755,142.66,142.65,0.04518182]
[1749783504461,168.98447805,142.66,142.65,0.04518182]
[1749783504656,174.75203805,142.66,142.65,0.04518182]
[1749783504852,166.3,142.66,142.65,7.05058182]
[1749783505054,7.0038,142.69,142.65,7.05058182]
[1749783505259,179.44936691,142.68,142.65,7.05058182]
[1749783505462,8.45171609,142.67,142.65,7.05058182]
[1749783505661,166.22,142.68,142.65,7.05058182]
[1749783505864,5.75736613,142.67,142.66,7.0049]
[1749783506063,8.45242685,142.67,142.65,0.04518182]
[1749783506362,173.2044,142.68,142.65,7.05028182]
[1749783506565,8.45242913,142.67,142.65,7.05028182]
[1749783506752,7.0045,142.67,142.65,0.04518182]
[1749783506957,166.2,142.68,142.65,0.04518182]
[1749783507260,8.45043387,142.67,142.65,0.04518182]
[1749783507560,166.18,142.68,142.65,7.05018182]
[1749783507758,2.69487074,142.67,142.65,7.05018182]
[1749783507964,166.18,142.68,142.65,7.05018182]
[1749783508167,166.18,142.68,142.66,7.0049]
[1749783508365,166.12,142.68,142.65,0.04518182]
[1749783508561,2.69394367,142.67,142.65,0.04518182]
[1749783508867,166.12,142.68,142.66,7.0049]
[1749783509562,166.1,142.68,142.67,7.0043]
[1749783509763,176.63145372,142.68,142.67,7.0043]
[1749783509963,174.55204759,142.68,142.67,7.0043]
[1749783510163,171.85671218,142.68,142.67,7.0043]
[1749783510461,2.6961342,142.68,142.67,7.0043]
[1749783510664,166.08,142.69,142.65,0.04518182]
[1749783510863,16.43200134,142.68,142.65,0.04518182]
[1749783511063,13.22543342,142.67,142.65,0.04518182]
[1749783511262,2.69532655,142.66,142.65,0.04518182]
[1749783511460,2.69505051,142.66,142.65,0.04518182]
[1749783511661,2.69492652,142.66,142.65,0.04518182]
[1749783512462,2.69642116,142.66,142.65,0.04518182]
[1749783512659,2.69642116,142.67,142.65,0.04518182]
[1749783512864,7.0045,142.67,142.65,0.04518182]
[1749783513171,7.47275323,142.66,142.65,0.04518182]
[1749783513362,4.77645114,142.66,142.65,0.04518182]
[1749783513572,7.46594487,142.66,142.65,0.04518182]
[1749783513869,7.46563768,142.66,142.65,0.04518182]
[1749783514069,7.46571158,142.66,142.65,0.04518182]
[1749783514260,4.76973395,142.66,142.65,0.04518182]
[1749783514462,7.46193099,142.66,142.65,0.04518182]
[1749783514657,2.69219704,142.66,142.65,0.04518182]
[1749783514866,4.76926708,142.66,142.65,0.04518182]
[1749783515058,2.69221441,142.66,142.65,0.04518182]
[1749783515259,2.69219999,142.66,142.65,0.04518182]
[1749783515459,2.69200244,142.66,142.65,0.04518182]
[1749783515664,165.96,142.67,142.65,0.04518182]
[1749783515969,172.9641,142.68,142.65,7.05048182]
[1749783516274,172.9041,142.68,142.65,7.05048182]
[1749783516473,165.9,142.68,142.66,7.0045]
[1749783516669,165.88,142.68,142.65,0.04518182]
[1749783517071,61.6233,142.7,142.66,7.0049]
[1749783517272,171.63121976,142.69,142.66,7.0049]
[1749783517473,165.88,142.69,142.66,7.0049]
[1749783517668,5.75069775,142.68,142.66,7.0049]
[1749783517870,172.8837,142.69,142.65,7.05038182]
[1749783518065,5.75064476,142.68,142.65,7.05038182]
[1749783518468,171.61064476,142.68,142.66,7.0048]
[1749783518675,165.86,142.68,142.66,7.0048]
[1749783518875,5.7515024,142.67,142.65,0.04518182]
[1749783519376,12.7560024,142.67,142.65,0.04518182]
[1749783519581,7.0045,142.67,142.65,0.04518182]
[1749783519769,7.0048,142.67,142.65,0.04518182]
[1749783521275,172.864,142.68,142.65,0.04518182]
[1749783521476,5.77310975,142.67,142.65,0.04518182]
[1749783521671,12.77760975,142.67,142.65,0.04518182]
[1749783521872,7.0045,142.67,142.65,0.04518182]
[1749783522380,12.7794773,142.66,142.65,0.04518182]
[1749783522879,5.7745773,142.66,142.65,0.04518182]
[1749783523876,59.7945773,142.66,142.65,0.04518182]
[1749783524173,66.7994773,142.66,142.65,0.04518182]
[1749783524374,67.11872402,142.66,142.54,92.40599028]
[1749783524577,4.6416709,142.59,142.54,6.8649]
[1749783524778,4.6416709,142.57,142.54,13.8755]
[1749783524970,4.6416709,142.57,142.54,9.2839]
[1749783525373,11.69625272,142.57,142.54,0.04806768]
[1749783525573,5.77338582,142.56,142.54,0.04806768]
[1749783526374,4.68685272,142.57,142.54,0.04806768]
[1749783526575,0.04518182,142.57,142.54,0.04806768]
[1749783526779,5.82760081,142.57,142.54,7.05866768]
[1749783527377,5.82760081,142.57,142.54,0.04806768]
[1749783527579,0.04518182,142.57,142.54,0.04806768]
[1749783527978,0.04518182,142.57,142.56,7.0098]
[1749783530085,0.04518182,142.57,142.56,9.2043]
[1749783530388,54.02,142.59,142.58,7.0088]
[1749783530581,165.56,142.61,142.56,10.16255738]
[1749783531285,165.56,142.61,142.57,0.05346183]
[1749783531786,226.5467,142.63,142.57,0.05346183]
[1749783531983,226.5467,142.63,142.6,7.0076]
[1749783531984,5.75427084,142.62,142.6,7.0076]
[1749783532287,5.75427084,142.62,142.6,7.05969567]
[1749783532590,5.75427084,142.62,142.6,7.05989567]
[1749783532986,5.75427084,142.62,142.6,0.05209567]
[1749783533489,171.19427084,142.62,142.6,0.05209567]
[1749783533786,165.44,142.62,142.6,0.05209567]
[1749783534283,165.44,142.62,142.6,7.05989567]
[1749783534489,5.77940299,142.61,142.6,0.05209567]
[1749783534883,5.77942294,142.61,142.6,0.05209567]
[1749783535387,171.23942294,142.62,142.6,0.05209567]
[1749783535588,165.46,142.62,142.6,0.05209567]
[1749783535785,165.46,142.62,142.6,7.05999567]
[1749783536985,165.46,142.62,142.61,7.0074]
[1749783537182,171.24475201,142.62,142.61,7.0074]
[1749783538290,8.48055011,142.62,142.61,7.0074]
[1749783538489,173.78076068,142.62,142.61,7.0074]
[1749783538689,173.77989798,142.62,142.61,7.0074]
[1749783538888,171.08475201,142.62,142.61,7.0074]
[1749783539088,165.3,142.62,142.61,7.0074]
[1749783539692,54.02,142.63,142.61,7.0074]
[1749783539892,165.26,142.62,142.61,7.0074]
[1749783541395,165.26,142.62,142.6,7.05979567]
[1749783541892,165.26,142.62,142.6,0.05209567]
[1749783542197,165.2,142.62,142.6,0.05209567]
[1749783542593,219.2,142.63,142.62,7.0069]
[1749783542789,59.80957325,142.63,142.6,0.05209567]
[1749783542994,165.18,142.62,142.6,0.05209567]
[1749783543199,165.18,142.62,142.6,7.05969567]
[1749783543494,54.02,142.63,142.6,0.05209567]
[1749783543798,2.2291,142.67,142.6,0.05209567]
[1749783543799,53.46,142.67,142.6,0.05209567]
[1749783544000,5.78604351,142.66,142.61,7.96805738]
[1749783544193,170.92604351,142.66,142.62,0.05282605]
[1749783544387,165.14,142.66,142.62,0.05282605]
[1749783544897,53.46,142.67,142.64,7.0054]
[1749783545094,218.58,142.67,142.64,7.0054]
[1749783545299,225.5845,142.67,142.64,7.0054]
[1749783545497,5.78627496,142.66,142.63,7.0061]
[1749783545700,170.86627496,142.66,142.63,7.0061]
[1749783545899,165.08,142.66,142.62,0.05282605]
[1749783546497,165.08,142.66,142.62,2.31642605]
[1749783546898,53.46,142.67,142.62,2.31642605]
[1749783547596,403.76,142.7,142.63,7.96805738]
[1749783547798,5.78909927,142.69,142.65,0.04711908]
[1749783548000,170.78909927,142.69,142.65,0.04711908]
[1749783548302,165.0,142.69,142.65,0.04711908]
[1749783549201,403.76,142.7,142.65,0.04711908]
[1749783549502,568.72,142.7,142.65,0.04711908]
[1749783549797,568.72,142.7,142.69,7.0034]